bitfinex/quotes_SOLUSD_20250102
["timestamp","ask_amount","ask_price","bid_price","bid_amount"]
[1735841118343,12.175,205.34,205.23,14.24141561]
[1735841118549,14.24141561,205.3,205.23,14.24141561]
[1735841118977,34.24141561,205.31,205.24,14.24141561]
[1735841119275,14.24141561,205.3,205.23,14.24141561]
[1735841120460,14.24141561,205.3,205.23,15.46140171]
[1735841120652,34.24141561,205.31,205.24,44.24141561]
[1735841120853,34.24141561,205.31,205.24,30.0]
[1735841121372,14.24141561,205.29,205.24,30.0]
[1735841121561,14.24141561,205.28,205.21,44.24141561]
[1735841121738,14.24141561,205.27,205.21,30.0]
[1735841122145,14.24141561,205.26,205.21,30.0]
[1735841122460,14.24141561,205.25,205.21,30.0]
[1735841122641,14.24141561,205.25,205.22,1.21977026]
[1735841123175,14.24141561,205.25,205.21,30.0]
[1735841124575,14.24141561,205.22,205.15,30.0]
[1735841124893,14.24141561,205.22,205.15,44.24141561]
[1735841125178,14.24141561,205.22,205.16,1.2201017]
[1735841125586,14.24141561,205.23,205.16,1.2201017]
[1735841125881,14.24141561,205.23,205.16,15.46151731]
[1735841126086,14.24141561,205.23,205.16,1.2201017]
[1735841126552,14.24141561,205.22,205.16,1.2201017]
[1735841127482,14.24141561,205.21,205.16,1.2201017]
[1735841127779,14.24141561,205.2,205.16,1.2201017]
[1735841128157,14.24141561,205.2,205.14,1.5076]
[1735841128673,14.24141561,205.2,205.14,2.7277017]
[1735841128868,14.24141561,205.21,205.15,30.0]
[1735841129260,14.24141561,205.22,205.15,30.0]
[1735841130261,14.24141561,205.22,205.15,44.24141561]
[1735841130452,14.24141561,205.25,205.18,44.24141561]
[1735841131280,14.24141561,205.24,205.18,30.0]
[1735841131593,14.24141561,205.24,205.19,1.21997419]
[1735841132082,14.24141561,205.26,205.19,14.24141561]
[1735841132873,14.24141561,205.27,205.2,14.24141561]
[1735841133088,14.24141561,205.26,205.2,1.21992374]
[1735841133578,14.24141561,205.27,205.2,15.46133935]
[1735841133768,14.24141561,205.27,205.21,1.21992374]
[1735841134283,14.24141561,205.27,205.2,14.24141561]
[1735841134877,14.24141561,205.28,205.22,30.0]
[1735841135086,14.24141561,205.3,205.23,15.79111561]
[1735841135464,14.24141561,205.34,205.26,14.24141561]
[1735841135663,14.24141561,205.34,205.27,14.24141561]
[1735841135980,14.24141561,205.33,205.26,14.24141561]
[1735841136151,38.39476961,205.33,205.26,14.24141561]
[1735841136482,14.24141561,205.27,205.24,1.21977275]
[1735841136670,14.24141561,205.25,205.23,1.5497]
[1735841137378,14.24141561,205.24,205.19,30.0]
[1735841137578,14.24141561,205.24,205.18,1.6635]
[1735841137754,14.24141561,205.24,205.19,30.0]
[1735841137964,14.24141561,205.24,205.2,1.21989071]
[1735841138667,14.24141561,205.24,205.21,1.21989071]
[1735841139580,14.24141561,205.25,205.22,1.21989071]
[1735841140155,14.24141561,205.25,205.23,1.21989071]
[1735841140858,14.24141561,205.27,205.2,14.24141561]
[1735841141575,14.24141561,205.27,205.21,1.2198384]
[1735841142086,14.24141561,205.3,205.23,30.0]
[1735841142264,14.24141561,205.29,205.23,30.0]
[1735841142676,14.24141561,205.28,205.23,30.0]
[1735841142880,14.24141561,205.29,205.24,1.2198384]
[1735841143079,14.24141561,205.27,205.24,1.2198384]
[1735841143982,14.24141561,205.27,205.2,44.24141561]
[1735841144181,0.25098,205.32,205.22,14.24141561]
[1735841144484,14.24141561,205.3,205.24,30.0]
[1735841144785,14.24141561,205.31,205.24,44.24141561]
[1735841145491,14.24141561,205.31,205.25,1.21984478]
[1735841145788,14.24141561,205.3,205.25,1.21984478]
[1735841145994,14.24141561,205.29,205.26,1.21984478]
[1735841146673,14.24141561,205.29,205.24,30.0]
[1735841148592,14.24141561,205.33,205.27,31.5473]
[1735841148769,24.3416,205.41,205.27,31.5473]
[1735841148770,14.24141561,205.36,205.3,30.0]
[1735841148974,14.24141561,205.38,205.31,14.24141561]
[1735841149183,14.24141561,205.39,205.32,14.24141561]
[1735841149389,14.24141561,205.37,205.3,44.24141561]
[1735841149693,14.24141561,205.34,205.3,30.0]
[1735841149862,14.24141561,205.35,205.3,30.0]
[1735841150064,14.24141561,205.36,205.3,30.0]
[1735841150264,14.24141561,205.35,205.3,30.0]
[1735841151173,14.24141561,205.36,205.3,30.0]
[1735841151586,14.24141561,205.39,205.33,30.0]
[1735841151890,14.24141561,205.4,205.33,44.24141561]
[1735841152593,14.24141561,205.38,205.33,30.0]
[1735841154795,14.24141561,205.39,205.34,1.21913692]
[1735841154994,14.24141561,205.41,205.34,1.21913692]
[1735841155299,14.24141561,205.38,205.34,1.21913692]
[1735841155493,14.24141561,205.38,205.33,30.0]
[1735841155879,14.24141561,205.4,205.33,44.24141561]
[1735841156195,14.24141561,205.37,205.33,30.0]
[1735841156521,5.0,205.32,205.23,7.61888949]
[1735841156796,14.24141561,205.25,205.23,7.61888949]
[1735841157299,0.7303,205.24,205.23,7.61888949]
[1735841157601,14.24141561,205.25,205.23,7.61888949]
[1735841157905,14.24141561,205.25,205.19,30.0]
[1735841158102,14.24141561,205.23,205.19,30.0]
[1735841160109,14.24141561,205.23,205.15,30.0]
[1735841160327,14.24141561,205.17,205.12,37.9503]
[1735841160491,14.24141561,205.17,205.16,1.22018571]
[1735841161220,14.24141561,205.17,205.12,30.0]
[1735841161539,14.24141561,205.17,205.15,30.0]
[1735841161693,14.24141561,205.21,205.15,30.0]
[1735841162105,14.24141561,205.21,205.16,1.22015154]
[1735841162424,14.24141561,205.24,205.18,30.0]
[1735841163214,14.24141561,205.27,205.21,30.0]
[1735841163417,14.24141561,205.25,205.21,30.0]
[1735841163618,14.24141561,205.26,205.21,30.0]
[1735841163791,14.24141561,205.25,205.21,30.0]
[1735841164195,22.82619389,205.26,205.21,30.0]
[1735841164812,22.82619389,205.27,205.21,30.0]
[1735841165027,22.82619389,205.26,205.21,30.0]
[1735841166125,22.82619389,205.26,205.22,1.21980605]
[1735841166424,22.82619389,205.28,205.22,1.21980605]
[1735841166732,22.82619389,205.28,205.24,30.0]
[1735841168141,22.82619389,205.28,205.21,30.0]
[1735841168347,22.82619389,205.26,205.21,30.0]
[1735841169412,0.7303,205.31,205.21,30.0]
[1735841169413,22.82619389,205.28,205.21,30.0]
[1735841169711,22.82619389,205.28,205.24,30.0]
[1735841170121,22.82619389,205.27,205.24,30.0]
[1735841170324,22.82619389,205.26,205.22,1.2198339]
[1735841170823,22.82619389,205.26,205.21,30.0]
[1735841171026,22.82619389,205.27,205.21,30.0]
[1735841171736,0.7303,205.32,205.21,30.0]
[1735841171737,22.82619389,205.24,205.21,30.0]
[1735841172056,12.1756,205.33,205.21,30.0]
[1735841172057,22.82619389,205.26,205.21,30.0]
[1735841172839,22.82619389,205.26,205.22,1.21983394]
[1735841173408,22.82619389,205.27,205.21,30.0]
[1735841174233,22.82619389,205.31,205.27,30.0]
[1735841174432,22.82619389,205.32,205.27,30.0]
[1735841174631,22.82619389,205.33,205.27,30.0]
[1735841175247,22.82619389,205.36,205.33,30.0]
[1735841175452,22.82619389,205.37,205.33,30.0]
[1735841175616,22.82619389,205.34,205.3,31.5543]
[1735841175816,22.82619389,205.36,205.33,30.0]
[1735841176223,22.82619389,205.37,205.33,30.0]
[1735841177119,22.82619389,205.38,205.33,30.0]
[1735841177542,22.82619389,205.37,205.33,30.0]
[1735841177847,22.82619389,205.38,205.33,30.0]
[1735841178143,22.82619389,205.4,205.36,30.0]
[1735841178544,22.82619389,205.41,205.36,30.0]
[1735841179137,22.82619389,205.41,205.36,36.3739]
[1735841179323,22.82619389,205.43,205.39,30.0]
[1735841180024,22.82619389,205.44,205.39,30.0]
[1735841180421,22.82619389,205.42,205.39,30.0]
[1735841180637,22.82619389,205.4,205.36,36.3739]
[1735841180820,22.82619389,205.39,205.36,36.3739]
[1735841181523,22.82619389,205.38,205.33,30.0]
[1735841181725,22.82619389,205.35,205.33,30.0]
[1735841182041,22.82619389,205.37,205.33,30.0]
[1735841182256,0.7303,205.44,205.36,30.0]
[1735841182560,22.82619389,205.42,205.36,30.0]
[1735841183747,22.82619389,205.41,205.36,30.0]
[1735841184134,22.82619389,205.42,205.36,30.0]
[1735841184333,14.24492398,205.42,205.4,30.0]
[1735841184549,14.24492398,205.41,205.36,30.0]
[1735841184736,0.7303,205.47,205.36,30.0]
[1735841184737,14.24492398,205.39,205.36,30.0]
[1735841185454,20.0,205.46,205.36,30.0]
[1735841185748,14.24492398,205.42,205.36,30.0]
[1735841186135,14.24492398,205.41,205.36,30.0]
[1735841187952,14.24492398,205.38,205.36,30.0]
[1735841188529,14.24492398,205.38,205.33,30.0]
[1735841190156,14.24492398,205.38,205.36,30.0]
[1735841190357,14.24492398,205.41,205.36,30.0]
[1735841190862,14.24492398,205.4,205.36,30.0]
[1735841191655,14.24492398,205.41,205.36,30.0]
[1735841191838,14.24492398,205.43,205.39,30.0]
[1735841192151,14.24492398,205.45,205.39,30.0]
[1735841192362,14.24492398,205.46,205.39,30.0]
[1735841192540,14.24492398,205.47,205.42,30.0]
[1735841193048,14.24492398,205.46,205.42,30.0]
[1735841193238,14.24492398,205.47,205.42,30.0]
[1735841193754,14.24492398,205.46,205.42,30.0]
[1735841193954,14.24492398,205.44,205.42,30.0]
[1735841194458,14.24492398,205.43,205.4,1.5462]
[1735841194760,14.24492398,205.42,205.4,1.5462]
[1735841194964,14.24492398,205.42,205.39,30.0]
[1735841195169,14.24492398,205.4,205.35,31.5725]
[1735841195337,12.8969,205.49,205.35,31.5725]
[1735841195338,14.24492398,205.37,205.35,31.5725]
[1735841195537,14.24492398,205.37,205.35,30.0]
[1735841195761,14.24492398,205.36,205.32,30.0]
[1735841195965,14.24492398,205.35,205.32,30.0]
[1735841196340,14.24492398,205.34,205.32,30.0]
[1735841197245,14.97522398,205.4,205.29,30.0]
[1735841197246,14.24492398,205.33,205.29,30.0]
[1735841197447,14.24492398,205.31,205.29,30.0]
[1735841197646,14.24492398,205.31,205.26,30.0]
[1735841198073,14.24492398,205.3,205.26,30.0]
[1735841198375,14.24492398,205.29,205.26,30.0]
[1735841199780,14.24492398,205.27,205.23,30.0]
[1735841199960,14.24492398,205.25,205.23,30.0]
[1735841200160,0.7303,205.34,205.23,30.0]
[1735841200161,14.24492398,205.26,205.23,30.0]
[1735841200380,14.24492398,205.28,205.23,30.0]
[1735841201658,14.24492398,205.27,205.23,30.0]
[1735841203386,14.24492398,205.28,205.23,30.0]
[1735841203883,14.24492398,205.27,205.23,30.0]
[1735841205659,14.24492398,205.28,205.23,30.0]
[1735841206088,14.24492398,205.29,205.26,30.0]
[1735841206381,14.24492398,205.32,205.29,30.0]
[1735841206592,14.24492398,205.33,205.29,30.0]
[1735841207285,14.24492398,205.34,205.29,30.0]
[1735841207485,14.24492398,205.37,205.32,30.0]
[1735841207897,14.24492398,205.36,205.32,30.0]
[1735841208263,14.24492398,205.4,205.35,30.0]
[1735841208771,14.24492398,205.41,205.35,30.0]
[1735841209370,14.24492398,205.39,205.35,30.0]
[1735841209587,14.24492398,205.4,205.35,30.0]
[1735841209962,14.24492398,205.41,205.35,30.0]
[1735841210487,14.24492398,205.4,205.35,30.0]
[1735841210786,14.24492398,205.38,205.35,30.0]
[1735841210962,14.24492398,205.37,205.32,30.0]
[1735841211570,14.24492398,205.38,205.32,30.0]
[1735841212698,14.24492398,205.39,205.32,44.24492398]
[1735841212903,14.24492398,205.38,205.32,30.0]
[1735841214913,14.24492398,205.35,205.32,30.0]
[1735841215918,14.24492398,205.34,205.3,1.5395]
[1735841216207,14.24492398,205.35,205.3,1.5395]
[1735841216374,14.24492398,205.4,205.3,1.5395]
[1735841216375,14.24492398,205.38,205.32,30.0]
[1735841216578,5.0,205.31,205.17,7.61888949]
[1735841216779,14.24492398,205.23,205.16,51.86381347]
[1735841217008,14.24492398,205.21,205.16,37.61888949]
[1735841217211,20.0,205.28,205.18,1.21997255]
[1735841217391,14.24492398,205.19,205.18,1.21997255]
[1735841217790,14.24492398,205.19,205.16,7.61888949]
[1735841218116,14.24492398,205.17,205.1,30.0]
[1735841218427,14.24492398,205.11,205.07,30.0]
[1735841218595,14.24492398,205.1,205.04,31.592]
[1735841218796,20.0,205.15,205.08,1.22048843]
[1735841219107,24.24492398,205.2,205.08,1.22048843]
[1735841219108,14.24492398,205.09,205.08,1.22048843]
[1735841219286,14.24492398,205.09,205.04,30.0]
[1735841219287,14.24492398,205.09,205.05,1.22048843]
[1735841219883,14.24492398,205.09,205.04,30.0]
[1735841220110,14.24492398,205.1,205.04,30.0]
[1735841220413,22.86205621,205.12,205.07,30.0]
[1735841220814,22.86205621,205.11,205.07,30.0]
[1735841221309,22.86205621,205.1,205.04,30.0]
[1735841222511,22.86205621,205.12,205.08,30.0]
[1735841222686,22.86205621,205.11,205.08,30.0]
[1735841223015,22.86205621,205.13,205.08,30.0]
[1735841223383,22.86205621,205.15,205.08,30.0]
[1735841223590,22.86205621,205.15,205.11,30.0]
[1735841223811,22.86205621,205.16,205.11,30.0]
[1735841224584,22.86205621,205.18,205.14,30.0]
[1735841224800,22.86205621,205.19,205.14,30.0]
[1735841225090,22.86205621,205.28,205.23,30.0]
[1735841225291,22.86205621,205.29,205.23,30.0]
[1735841225500,0.7303,205.37,205.26,30.0]
[1735841225817,22.86205621,205.33,205.26,52.86205621]
[1735841226030,22.86205621,205.35,205.29,30.0]
[1735841226318,22.86205621,205.38,205.32,30.0]
[1735841226888,22.86205621,205.33,205.28,30.0]
[1735841227112,22.86205621,205.31,205.25,30.0]
[1735841227510,22.86205621,205.29,205.25,30.0]
[1735841227699,22.86205621,205.28,205.22,30.0]
[1735841228214,22.86205621,205.29,205.22,52.86205621]
[1735841229112,22.86205621,205.3,205.23,24.47805621]
[1735841229311,22.86205621,205.29,205.23,1.616]
[1735841229621,22.86205621,205.28,205.23,1.616]
[1735841229832,22.86205621,205.29,205.23,1.616]
[1735841231320,22.86205621,205.26,205.19,22.86205621]
[1735841231651,22.86205621,205.2,205.15,30.0]
[1735841232121,22.86205621,205.21,205.15,30.0]
[1735841233120,22.86205621,205.22,205.15,52.86205621]
[1735841234820,22.86205621,205.2,205.15,30.0]
[1735841236725,0.25098,205.25,205.15,30.0]
[1735841236937,22.86205621,205.22,205.15,30.0]
[1735841237322,22.86205621,205.23,205.15,52.86205621]
[1735841238608,23.59235621,205.25,205.17,22.86205621]
[1735841238836,22.86205621,205.27,205.19,52.86205621]
[1735841239041,22.86205621,205.23,205.19,30.0]
[1735841239213,22.86205621,205.24,205.19,30.0]
[1735841240449,22.86205621,205.25,205.19,30.0]
[1735841241137,22.86205621,205.23,205.16,30.0]
[1735841243151,22.86205621,205.25,205.17,22.86205621]
[1735841243430,22.86205621,205.27,205.2,30.0]
[1735841243643,22.86205621,205.29,205.23,30.0]
[1735841245813,22.86205621,205.28,205.23,30.0]
[1735841246020,22.86205621,205.28,205.2,52.86205621]
[1735841246524,22.86205621,205.28,205.23,30.0]
[1735841246927,22.86205621,205.29,205.23,30.0]
[1735841247743,0.7303,205.33,205.26,30.0]
[1735841247953,22.86205621,205.35,205.27,22.86205621]
[1735841248447,22.86205621,205.35,205.28,22.86205621]
[1735841248753,22.86205621,205.36,205.29,52.86205621]
[1735841248945,22.86205621,205.38,205.32,30.0]
[1735841249110,22.86205621,205.39,205.32,30.0]
[1735841249929,22.86205621,205.38,205.32,30.0]
[1735841250316,22.86205621,205.4,205.33,24.42535621]
[1735841250846,22.86205621,205.39,205.33,1.5633]
[1735841252951,22.86205621,205.38,205.33,1.5633]
[1735841253446,22.86205621,205.36,205.29,30.0]
[1735841253648,12.1695,205.43,205.29,30.0]
[1735841253649,22.86205621,205.33,205.29,30.0]
[1735841253848,22.86205621,205.36,205.29,52.86205621]
[1735841254055,22.86205621,205.39,205.33,30.0]
[1735841254256,22.86205621,205.4,205.33,52.86205621]
[1735841254460,22.86205621,205.41,205.33,52.86205621]
[1735841254638,22.86205621,205.4,205.33,52.86205621]
[1735841254825,22.86205621,205.4,205.33,30.0]
[1735841255338,22.86205621,205.39,205.33,30.0]
[1735841255662,22.86205621,205.37,205.3,30.0]
[1735841256456,22.86205621,205.36,205.3,30.0]
[1735841256649,22.86205621,205.37,205.3,30.0]
[1735841257151,22.86205621,205.38,205.31,22.86205621]
[1735841257520,22.86205621,205.38,205.33,30.0]
[1735841257726,22.86205621,205.4,205.33,52.86205621]
[1735841258130,22.86205621,205.4,205.33,30.0]
[1735841260345,22.86205621,205.4,205.33,52.86205621]
[1735841260664,22.86205621,205.41,205.36,30.0]
[1735841260835,0.7303,205.45,205.36,30.0]
[1735841260836,22.86205621,205.4,205.36,30.0]
[1735841261536,22.86205621,205.41,205.36,30.0]
[1735841261737,0.7303,205.45,205.36,30.0]
[1735841261738,22.86205621,205.43,205.36,52.86205621]
[1735841261946,22.86205621,205.44,205.37,22.86205621]
[1735841262449,22.86205621,205.43,205.36,52.86205621]
[1735841262646,22.86205621,205.42,205.36,30.0]
[1735841263046,22.86205621,205.43,205.36,30.0]
[1735841263863,22.86205621,205.41,205.36,30.0]
[1735841264037,22.86205621,205.4,205.36,30.0]
[1735841264239,22.86205621,205.39,205.34,6.6199]
[1735841264660,22.86205621,205.36,205.3,30.0]
[1735841264961,22.86205621,205.39,205.33,30.0]
[1735841266169,22.86205621,205.41,205.37,30.0]
[1735841268768,22.86205621,205.41,205.34,30.0]
[1735841269153,22.86205621,205.41,205.37,30.0]
[1735841269571,22.86205621,205.43,205.37,30.0]
[1735841270267,14.24633688,205.42,205.37,30.0]
[1735841271546,14.24633688,205.42,205.34,30.0]
[1735841272952,14.24633688,205.42,205.34,44.24633688]
[1735841274582,0.7303,205.41,205.34,30.0]
[1735841275296,14.24633688,205.4,205.34,30.0]
[1735841275766,14.24633688,205.42,205.34,30.0]
[1735841276712,14.24633688,205.44,205.37,30.0]
[1735841278074,0.7303,205.49,205.41,30.0]
[1735841278377,14.24633688,205.49,205.44,30.0]
[1735841278597,0.7303,205.55,205.46,14.24633688]
[1735841278758,14.24633688,205.54,205.47,14.24633688]
[1735841279075,14.24633688,205.55,205.47,44.24633688]
[1735841279266,14.24633688,205.55,205.5,30.0]
[1735841280378,14.24633688,205.54,205.5,30.0]
[1735841280587,0.7303,205.59,205.5,30.0]
[1735841280588,14.24633688,205.55,205.5,30.0]
[1735841281082,14.24633688,205.56,205.5,30.0]
[1735841281286,14.24633688,205.55,205.5,30.0]
[1735841282702,0.7303,205.59,205.5,30.0]
[1735841282703,14.24633688,205.54,205.5,30.0]
[1735841282991,14.24633688,205.55,205.5,30.0]
[1735841283191,14.24633688,205.56,205.5,30.0]
[1735841283868,14.24633688,205.57,205.5,30.0]
[1735841284057,0.7303,205.61,205.53,30.0]
[1735841284058,14.24633688,205.59,205.53,30.0]
[1735841284683,1.6155,205.66,205.53,44.24633688]
[1735841284684,14.24633688,205.6,205.53,44.24633688]
[1735841284885,14.24633688,205.61,205.53,44.24633688]
[1735841285085,14.24633688,205.61,205.54,14.24633688]
[1735841285465,0.7303,205.63,205.55,14.24633688]
[1735841285680,14.24633688,205.64,205.57,14.24633688]
[1735841285970,14.24633688,205.65,205.58,14.24633688]
[1735841286385,0.7303,205.66,205.6,30.0]
[1735841286386,14.24633688,205.66,205.6,30.0]
[1735841286685,14.24633688,205.68,205.61,14.24633688]
[1735841286882,12.1511,205.75,205.63,44.24633688]
[1735841287072,14.24633688,205.7,205.63,44.24633688]
[1735841287288,14.24633688,205.71,205.64,14.24633688]
[1735841287666,14.24633688,205.72,205.65,14.24633688]
[1735841287867,14.24633688,205.73,205.66,44.24633688]
[1735841288277,14.24633688,205.74,205.67,14.24633688]
[1735841288889,14.24633688,205.75,205.68,14.24633688]
[1735841289279,14.24633688,205.74,205.67,14.24633688]
[1735841289789,0.7303,205.78,205.71,14.24633688]
[1735841289999,14.24633688,205.79,205.71,14.24633688]
[1735841290291,14.24633688,205.79,205.72,14.24633688]
[1735841290590,22.71592023,205.76,205.7,30.0]
[1735841290794,22.71592023,205.73,205.67,30.0]
[1735841290977,22.71592023,205.75,205.68,22.71592023]
[1735841291178,22.71592023,205.76,205.71,30.0]
[1735841291766,22.71592023,205.74,205.68,30.0]
[1735841292494,22.71592023,205.75,205.68,52.71592023]
[1735841292991,22.71592023,205.71,205.65,30.0]
[1735841293590,22.71592023,205.69,205.62,52.71592023]
[1735841293785,22.71592023,205.68,205.62,52.71592023]
[1735841293987,22.71592023,205.69,205.65,30.0]
[1735841294486,22.71592023,205.7,205.65,30.0]
[1735841294868,22.71592023,205.71,205.65,30.0]
[1735841295597,22.71592023,205.72,205.65,52.71592023]
[1735841296594,22.71592023,205.73,205.66,22.71592023]
[1735841296969,22.71592023,205.74,205.67,22.71592023]
[1735841297798,22.71592023,205.73,205.66,22.71592023]
[1735841297977,22.71592023,205.72,205.65,52.71592023]
[1735841299299,22.71592023,205.69,205.62,52.71592023]
[1735841300496,22.71592023,205.71,205.64,22.71592023]
[1735841300681,23.44622023,205.7,205.63,22.71592023]
[1735841300997,22.71592023,205.69,205.62,52.71592023]
[1735841301494,22.71592023,205.68,205.62,30.0]
[1735841301710,22.71592023,205.65,205.59,31.6431]
[1735841301894,22.71592023,205.64,205.59,31.6431]
[1735841302595,22.71592023,205.64,205.59,1.6431]
[1735841303488,22.71592023,205.65,205.59,1.6431]
[1735841304099,22.71592023,205.64,205.59,1.6431]
[1735841304804,22.71592023,205.62,205.56,36.3332]
[1735841304974,22.71592023,205.61,205.56,36.3332]
[1735841305896,22.71592023,205.62,205.56,36.3332]
[1735841306500,23.44622023,205.61,205.56,6.3332]
[1735841306694,23.44622023,205.61,205.54,24.24272023]
[1735841307004,22.71592023,205.61,205.54,24.24272023]
[1735841308098,22.71592023,205.62,205.54,24.24272023]
[1735841308415,22.71592023,205.61,205.54,24.24272023]
[1735841309601,22.71592023,205.61,205.54,1.5268]
[1735841309789,22.71592023,205.59,205.54,1.5268]
[1735841310178,0.7303,205.63,205.56,30.0]
[1735841310179,23.44622023,205.63,205.56,30.0]
[1735841310378,22.71592023,205.64,205.57,22.71592023]
[1735841310579,22.71592023,205.65,205.58,22.71592023]
[1735841311202,22.71592023,205.65,205.59,30.0]
[1735841311579,22.71592023,205.67,205.59,52.71592023]
[1735841311777,22.71592023,205.68,205.62,30.0]
[1735841312288,14.20992574,205.68,205.62,30.0]
[1735841312710,14.20992574,205.71,205.66,30.0]
[1735841312894,14.20992574,205.72,205.66,30.0]
[1735841313484,14.20992574,205.74,205.67,14.20992574]
[1735841314095,14.20992574,205.75,205.69,30.0]
[1735841314306,22.72013783,205.75,205.69,30.0]
[1735841314605,22.72013783,205.74,205.69,30.0]
[1735841314796,22.72013783,205.73,205.69,30.0]
[1735841315407,22.72013783,205.7,205.65,30.0]
[1735841316512,22.72013783,205.7,205.64,1.5698]
[1735841317513,22.72013783,205.7,205.64,24.28993783]
[1735841318414,22.72013783,205.7,205.64,1.5698]
[1735841320912,22.72013783,205.7,205.64,24.28993783]
[1735841322296,22.72013783,205.72,205.66,30.0]
[1735841322497,22.72013783,205.73,205.66,52.72013783]
[1735841323012,22.72013783,205.75,205.69,30.0]
[1735841323186,22.72013783,205.76,205.69,52.72013783]
[1735841324016,22.72013783,205.76,205.7,1.21705029]
[1735841324236,22.72013783,205.75,205.7,1.21705029]
[1735841324823,22.72013783,205.75,205.71,1.21705029]
[1735841325522,22.72013783,205.75,205.72,1.21705029]
[1735841326247,22.72013783,205.75,205.69,30.0]
[1735841326837,22.72013783,205.74,205.7,1.21698517]
[1735841327004,22.72013783,205.71,205.7,1.21698517]
[1735841327398,0.7303,205.75,205.7,1.21698517]
[1735841327601,22.72013783,205.72,205.7,1.21698517]
[1735841327913,22.72013783,205.72,205.66,30.0]
[1735841328133,22.72013783,205.71,205.66,30.0]
[1735841328312,22.72013783,205.71,205.67,1.21724653]
[1735841329129,22.72013783,205.71,205.68,1.21724653]
[1735841329598,22.72013783,205.72,205.68,1.21724653]
[1735841329800,22.72013783,205.73,205.68,1.21724653]
[1735841330020,22.72013783,205.73,205.69,1.21724653]
[1735841330428,22.72013783,205.73,205.7,1.21724653]
[1735841331335,22.72013783,205.73,205.71,1.21724653]
[1735841331617,23.45043783,205.75,205.71,1.21724653]
[1735841331819,1.95342023,205.82,205.71,1.21724653]
[1735841331820,22.72013783,205.77,205.71,1.21724653]
[1735841332031,22.72013783,205.78,205.72,31.21724653]
[1735841332217,22.72013783,205.8,205.77,30.0]
[1735841332412,22.72013783,205.85,205.78,22.72013783]
[1735841332730,12.143,205.88,205.77,30.0]
[1735841332731,22.72013783,205.86,205.79,22.72013783]
[1735841333229,22.72013783,205.86,205.8,1.21656861]
[1735841333607,22.72013783,205.82,205.8,1.21656861]
[1735841333811,0.7303,205.81,205.75,22.72013783]
[1735841334130,22.72013783,205.82,205.75,22.72013783]
[1735841334430,22.72013783,205.84,205.77,52.72013783]
[1735841334626,22.72013783,205.85,205.78,22.72013783]
[1735841335213,22.72013783,205.85,205.79,1.21662412]
[1735841335614,22.72013783,205.85,205.79,23.93676195]
[1735841335809,22.72013783,205.85,205.8,30.0]
[1735841336002,22.72013783,205.86,205.8,30.0]
[1735841336205,14.18365307,205.87,205.8,44.18365307]
[1735841337929,14.18365307,205.85,205.8,30.0]
[1735841338224,14.18365307,205.88,205.82,14.18365307]
[1735841338431,14.18365307,205.88,205.81,14.18365307]
[1735841339026,14.18365307,205.89,205.82,14.18365307]
[1735841339532,14.12916014,205.9,205.83,44.18365307]
[1735841339828,14.91395307,205.91,205.84,14.18365307]
[1735841340539,14.18365307,205.89,205.83,37.7794]
[1735841341428,0.7303,205.91,205.83,21.96305307]
[1735841341626,14.87118317,205.96,205.83,21.96305307]
[1735841341627,14.18365307,205.9,205.84,30.0]
[1735841341826,14.18365307,205.89,205.84,30.0]
[1735841342334,14.18365307,205.87,205.83,7.7794]
[1735841342534,14.18365307,205.9,205.84,14.18365307]
[1735841342739,0.7303,205.89,205.84,14.18365307]
[1735841342938,0.7303,205.89,205.83,21.96305307]
[1735841343150,14.91395307,205.89,205.83,7.7794]
[1735841343448,14.18365307,205.9,205.84,30.0]
[1735841343650,14.18365307,205.91,205.84,44.18365307]
[1735841344432,20.0,205.93,205.84,30.0]
[1735841344639,0.7303,205.97,205.84,30.0]
[1735841344640,14.91395307,205.94,205.87,14.18365307]
[1735841344838,14.18365307,205.94,205.87,44.18365307]
[1735841345037,14.18365307,205.95,205.88,14.18365307]
[1735841345238,14.18365307,205.95,205.9,30.0]
[1735841345755,14.18365307,205.93,205.87,30.0]
[1735841346138,14.18365307,205.93,205.87,44.18365307]